Cogmind - Beta 17.1 @@@ ROGUE MODE // 2026.08.28 @ 23:34:12 Player: ATOM Result: Destroyed by X-57 Shotgunner with Shotgun Performance ------------- Evolutions (3) 1500 Regions Visited (4) 800 Robots Destroyed (71) 355 Value Destroyed (2649) 2649 Prototype IDs (4) 80 Alien Tech Used (0) 0 Bonus (0) 0 TOTAL SCORE: 5384 Bonus ------- None Cogmind --------- Core Integrity 0/700 Matter 82/300 Energy 253/290 System Corruption 2% Temperature Cool (0) Movement Core (600) Ox11 Location -7/Factory Parts ------- > --- POWER (2) -------- Improved Deuterium Engine > --- PROPULSION (3) --- (None) > --- UTILITY (6) ------ Large Storage Unit Machine Analyzer Core Analyzer Graphene Brace > --- WEAPON (2) ------- Ripper > --- INVENTORY (15) --- Light Nuclear Core Light Nuclear Core Improved Heat Sink Improved Cooling System Improved Sensor Array Target Analyzer Peak State ------------ > --- POWER ------------ Light Nuclear Core Micro Nuclear Core > --- PROPULSION ------- Aluminum Leg Aluminum Leg Carbon-fiber Leg > --- UTILITY ---------- Improved Heat Sink Large Storage Unit Advanced Targeting Computer Core Analyzer Armor Integrity Analyzer Graphene Brace > --- WEAPON ----------- Minigun Gauss Rifle > --- INVENTORY -------- Light Nuclear Core Light Nuclear Core Light Nuclear Core Light Nuclear Core Light Nuclear Core Aluminum Leg Compact Wheel Improved Heat Sink Improved Cooling System Advanced Visual Processing Unit Improved Sensor Array Particle Gun Plasma Cannon Autogun Ripper [Rating: 45] Favorites ----------- Power Light Nuclear Core Engine Ion Engine Power Core Light Nuclear Core Propulsion Light Treads Treads Light Treads Leg Aluminum Leg Wheel Compact Wheel Flight Unit Flight Unit Utility Improved Heat Sink Device Improved Heat Sink Storage Large Storage Unit Processor Targeting Computer Hackware Hacking Suite Protection Power Shielding Weapon Autogun Energy Gun Small Laser Energy Cannon EM Pulse Cannon Ballistic Gun Autogun Launcher Shock Bomb Launcher Slashing Weapon Ripper Build | -11 -10 -10 -8 -7 ------- Run | Yrd Mat Sub Mat Fac Slots Evolved 6 | . . . 4 2 Power 1 | . . . 1 . Propulsion 1 | . . . . 1 Utility 4 | . . . 3 1 Weapon . | . . . . . Parts Attached 90 | 6 2 1 49 32 Power 17 | 1 . . 9 7 Engine 9 | 1 . . 7 1 Core 8 | . . . 2 6 Reactor . | . . . . . Propulsion 23 | 2 . . 12 9 Treads 8 | 2 . . 5 1 Leg 9 | . . . 2 7 Wheel 5 | . . . 4 1 Hover . | . . . . . Flight 1 | . . . 1 . Utility 23 | 1 1 . 13 8 Device 8 | . . . 4 4 Storage 2 | 1 . . 1 . Processor 7 | . . . 3 4 Hackware 1 | . . . 1 . Protection 5 | . 1 . 4 . Artifact . | . . . . . Weapon 27 | 2 1 1 15 8 Energy Gun 9 | 1 1 . 7 . Energy Cannon 3 | . . . 2 1 Ballistic Gun 13 | 1 . 1 6 5 Ballistic Cannon . | . . . . . Launcher 1 | . . . . 1 Special Weapon . | . . . . . Impact Weapon . | . . . . . Slashing Weapon 1 | . . . . 1 Piercing Weapon . | . . . . . Special Melee Weapon . | . . . . . Unidentified Prototypes 2 | . . . 2 . Corrupted Parts 1 | . . . . 1 System Corruption 2 | . . . . 2 Parts Lost 59 | . . . 30 29 Power 14 | . . . 6 8 Propulsion 16 | . . . 9 7 Utility 14 | . . . 7 7 Weapon 15 | . . . 8 7 Highest Loss Streak 18 | . . . 9 18 To Critical Strikes . | . . . . . Average Backups 6 | 2 3 3 6 11 Power 1 | . 1 1 1 3 Propulsion . | . 1 1 . 1 Utility 1 | . . . 1 4 Weapon 2 | . 1 1 3 2 Tool/Special . | . . . . . Unused Backups 10 | . . . . 10 Power 3 | . . . . 3 Propulsion . | . . . . . Utility 5 | . . . . 5 Weapon 2 | . . . . 2 Tool/Special . | . . . . . Average Slot Usage (%) 93 | . 98 100 90 92 Engine 8 | . 14 14 7 3 Core 6 | . . . 8 10 Treads 13 | . 28 28 10 1 Leg 4 | . . . 2 16 Wheel 1 | . . . 2 . Device 9 | . . . 11 15 Storage 9 | . 14 14 9 7 Processor 9 | . . . 8 21 Protection 8 | . 12 14 10 . Energy Gun 7 | . 14 14 6 . Energy Cannon 1 | . . . 1 1 Ballistic Gun 11 | . 14 14 9 12 Peak Build Rating 45 | 6 7 8 34 45 Average Rating 22 | 4 6 7 23 39 On Entrance 10 | . 6 7 8 29 Avg Prop Armor Cover (%) 6 | . . . 6 . Naked Turns . | . . . . . Heaviest Build 57 | 13 14 14 55 57 Greatest Support 42 | 40 40 40 42 35 Greatest Overweight (x) 15 | . . . 8 15 Average Overweight (x) . | . . . 1 1 Largest Inventory Capacity 15 | 8 8 8 15 15 Average Capacity 12 | 6 8 8 13 15 Most Carried 15 | 3 4 5 13 15 Average Carried 6 | 2 3 3 6 11 Final Capacity 15 | 8 8 8 15 15 Final Carried 11 | 3 3 5 11 6 Class Distribution -------------------- 64% | Scavenger-Mutant 35% | Mutant Dominant Class ---------------- Mutant | -10/Materials Mutant | -10/Subcaves Scavenger-Mutant | -8/Materials Scavenger-Mutant | -7/Factory Resources | -11 -10 -10 -8 -7 ----------- Run | Yrd Mat Sub Mat Fac Matter Collected 2053 | 194 123 96 1004 636 Remotely . | . . . . . Salvage Created 3117 | . 123 32 1830 1132 Parts 156 | . 12 1 88 55 Haulers Intercepted . | . . . . . Recyclers Shooed 1 | . . . . 1 Parts Field Recycled . | . . . . . Retrieved Matter . | . . . . . Parts Self-Destructed 6 | . . 6 . . Prevented . | . . . . . Parts Restored . | . . . . . Kills | -11 -10 -10 -8 -7 ------- Run | Yrd Mat Sub Mat Fac Combat Hostiles Destroyed 59 | . 4 2 31 22 Melee 2 | . . . . 2 Guns 45 | . 4 2 23 16 Cannons 9 | . . . 5 4 AOE 2 | . . . 2 . Classes Destroyed 14 | . 4 1 6 3 Worker 4 | . . . 3 1 Tunneler 1 | . 1 . . . Recycler 3 | . . . 2 1 Watcher 4 | . 1 . 2 1 Swarmer 12 | . 3 . 5 4 Grunt 28 | . 1 . 16 11 Brawler 1 | . . . 1 . Duelist 1 | . . . . 1 Sentry 4 | . . . 4 . Specialist 6 | . . . 4 2 Hunter 3 | . . . . 3 Programmer 1 | . . . . 1 Heavy 1 | . . . 1 . Subdweller 2 | . . 2 . . Best Kill Streak 6 | . 3 1 6 5 Combat Bots Only 6 | . 3 1 6 4 Max Kills in Single Turn 2 | . 2 1 2 1 Gunslinging . | . . . . . Exploded 2 | . . . 2 . Melee 1 | . . . . 1 Uniques/NPCs Destroyed . | . . . . . Combat | -11 -10 -10 -8 -7 -------- Run | Yrd Mat Sub Mat Fac Hostile Shots Fired 656 | . 12 39 267 338 Missed 183 | . 5 12 69 97 Hits 473 | . 7 27 198 241 Melee 9 | . . . 5 4 Projectile 464 | . 7 27 193 237 Critical Strikes 18 | . . . 16 2 Actively Blocked 3 | . . . 1 2 Part Disruptions 1 | . . . . 1 Damage Taken 7862 | . 62 575 3454 3771 Core 1386 | . 20 135 524 707 Absorbed by Shields . | . . . . . Redirected to Shielding 53 | . . 18 35 . Core Remaining (%) 47 | 100 . 38 4 . Volleys Fired 272 | . 22 19 135 96 Largest 2 | . 2 2 2 2 Hottest 119 | . 60 60 119 105 Shots Fired 509 | . 39 38 253 179 Gun 465 | . 39 38 224 164 Cannon 43 | . . . 29 14 Launcher 1 | . . . . 1 Special . | . . . . . Kinetic 323 | . 22 19 118 164 Thermal 127 | . 17 19 77 14 Explosive . | . . . . . Electromagnetic 59 | . . . 58 1 Robot Hit Streak 25 | . 3 18 21 25 Robot Miss Streak 5 | . 5 1 5 4 Penetration Max 1 | . . . . 1 Secondary Targets 6 | . 1 . 4 1 Max Gunslinging Chain 1 | . 1 . 1 1 Shots Hit Robots 346 | . 12 27 177 130 Core Hits 133 | . 7 4 68 54 Critical Kills . | . . . . . Critical Parts Destroyed . | . . . . . Critical Strikes 8 | . . . 7 1 Burn 6 | . . . 6 . Corrupt 1 | . . . 1 . Sever 1 | . . . . 1 Melee Attacks 4 | . . . . 4 Impact . | . . . . . Slashing 4 | . . . . 4 Piercing . | . . . . . Sneak Attacks . | . . . . . Combat Hostiles . | . . . . . Follow-up Attacks . | . . . . . Damage Inflicted 6491 | . 158 256 3507 2570 Guns 4969 | . 158 256 2676 1879 Cannons 912 | . . . 530 382 Explosions 449 | . . . 301 148 Melee 161 | . . . . 161 Ramming . | . . . . . Kinetic 3362 | . 102 136 1245 1879 Thermal 1971 | . 56 120 1413 382 Explosive . | . . . . . Electromagnetic 997 | . . . 849 148 Impact . | . . . . . Slashing 161 | . . . . 161 Piercing . | . . . . . Highest Corruption 7 | . . . 7 2 Average Corruption 6 | . . . 6 2 Corruption Purged . | . . . . . Corruption Blocked . | . . . . . Effects 60 | . . . 59 1 Message Errors 13 | . . . 13 . Matter Fused 13 | . . . 12 1 Heat Flow Errors 10 | . . . 10 . Energy Discharges 7 | . . . 7 . Parts Rejected 1 | . . . 1 . Parts Fused 2 | . . . 2 . Data Loss (minor) 3 | . . . 3 . Data Loss (major) 5 | . . . 5 . Misfires 4 | . . . 4 . Weapon Failures 2 | . . . 2 . Overload Shots . | . . . . . Overflow Damage 41 | . . . 27 14 Projectiles 32 | . . . 18 14 Explosions 9 | . . . 9 . Melee . | . . . . . Knockbacks . | . . . . . Impact . | . . . . . Kinetic . | . . . . . Secondary . | . . . . . Self-Inflicted Damage 138 | . . . 126 12 Shots 3 | . . . 2 1 Rammed . | . . . . . Targets Rammed 1 | . . . . 1 Kicked . | . . . . . Crushed 1 | . . . . 1 Highest Temperature 441 | . 6 . 441 74 Average Temperature 80 | . 6 . 92 19 Received Heat Transfer 2004 | . 6 . 1359 639 Effects 10 | . . . 10 . Shutdowns 3 | . . . 3 . Energy Bleed 1 | . . . 1 . Interference 3 | . . . 3 . Matter Decay 1 | . . . 1 . Damage (major) 2 | . . . 2 . Siege Activations . | . . . . . Martial Activations . | . . . . . Shielding Activations . | . . . . . Robots Disrupted . | . . . . . Combat Hostiles . | . . . . . Robots Corrupted 1 | . . . 1 . Combat Hostiles 1 | . . . 1 . Parts Fried 7 | . . . 7 . Impact Corruptions . | . . . . . Robots Melted . | . . . . . Combat Hostiles . | . . . . . Parts Melted 7 | . . . 2 5 Heat Transferred 3816 | . 125 275 2716 700 Parts Sabotaged . | . . . . . Parts Stolen . | . . . . . Parts Stripped . | . . . . . Power Chain Reactions 4 | . . . 4 . Alert | -11 -10 -10 -8 -7 ------- Run | Yrd Mat Sub Mat Fac Maximum Alert Level 1 | . . . 1 . Low Security (%) 99 | 100 100 . 99 100 Level 1 . | . . . . . Level 2 . | . . . . . Level 3 . | . . . . . Level 4 . | . . . . . Level 5 . | . . . . . High Security . | . . . . . Max Security . | . . . . . Peak Influence 205 | . 60 . 205 70 Initial . | . . . . . Average 36 | . 8 . 50 24 Influence Increases 1542 | . 112 . 878 552 Destroy 0b10 Robot/C 1140 | . 80 . 620 440 Destroy 0b10 Robot/NC 60 | . 10 . 35 15 Destroy Leader 238 | . 22 . 144 72 Successful Hack 21 | . . . 13 8 Disable Machine 45 | . . . 30 15 Destroy Structure 23 | . . . 21 2 Partial Spotted 15 | . . . 15 . Influence Decreases 1542 | . 112 . 878 552 Time Decay 838 | . 112 . 402 324 Lost Part 509 | . . . 281 228 Purge Threat 195 | . . . 195 . Squads Dispatched 13 | . 1 . 7 5 Investigation 2 | . . . . 2 Extermination 1 | . . . . 1 Reinforcement 7 | . 1 . 4 2 Assault . | . . . . . Garrison 3 | . . . 3 . Intercept . | . . . . . Searches Triggered . | . . . . . Construction Impeded . | . . . . . Haulers Reinforced . | . . . . . Active Scanning Responses . | . . . . . Cargo Convoy Interrupts 1 | . . . . 1 Stealth | -11 -10 -10 -8 -7 --------- Run | Yrd Mat Sub Mat Fac Distress Signals . | . . . . . Communications Jammed . | . . . . . Distress Signals . | . . . . . Times Spotted 94 | . 7 4 46 37 Peak Tracking Total 11 | . 3 2 7 11 Tactical Retreats . | . . . . . Traps | -11 -10 -10 -8 -7 ------- Run | Yrd Mat Sub Mat Fac Traps Triggered 1 | . . . . 1 Indirectly . | . . . . . Trap Hack Attempts . | . . . . . Triggered . | . . . . . Disarmed . | . . . . . Reprogrammed . | . . . . . Reused . | . . . . . Traps Extracted . | . . . . . Installed . | . . . . . Triggered . | . . . . . Machines | -11 -10 -10 -8 -7 ---------- Run | Yrd Mat Sub Mat Fac Machines Disabled 3 | . . . 2 1 Max in Single Turn 1 | . . . 1 1 Machines Repaired . | . . . . . Machines Dismantled . | . . . . . Machines Sabotaged . | . . . . . Overloaded Fab Kills . | . . . . . Hacking | -11 -10 -10 -8 -7 --------- Run | Yrd Mat Sub Mat Fac Machines Accessed 12 | . . . 8 4 Terminals 8 | . . . 6 2 Fabricators . | . . . . . Repair Stations 1 | . . . . 1 Recycling Units 1 | . . . 1 . Scanalyzers 2 | . . . 1 1 Garrison Access . | . . . . . Total Hacks 25 | . . . 16 9 Successful 11 | . . . 7 4 Failed 14 | . . . 9 5 Catastrophic 4 | . . . 2 2 Database Lockouts . | . . . . . Manual . | . . . . . Terminals 18 | . . . 13 5 Fabricators . | . . . . . Repair Stations 1 | . . . . 1 Recycling Units 1 | . . . 1 . Scanalyzers 5 | . . . 2 3 Garrison Access . | . . . . . Terminal Hacks 6 | . . . 5 1 Record 1 | . . . . 1 Prototype ID Bank 1 | . . . 1 . Emergency Access Points 1 | . . . 1 . Unreport Threat 2 | . . . 2 . Recall Reinforcements 1 | . . . 1 . Fabricator Hacks . | . . . . . Repair Station Hacks . | . . . . . Recycling Unit Hacks 1 | . . . 1 . Report Inventory 1 | . . . 1 . Scanalyzer 4 | . . . 1 3 Retrieve Study 4 | . . . 1 3 Garrison Access Hacks . | . . . . . Unauthorized Hacks . | . . . . . Terminals . | . . . . . Fabricators . | . . . . . Repair Stations . | . . . . . Recycling Units . | . . . . . Scanalyzers . | . . . . . Garrison Access . | . . . . . Data Cores Recovered . | . . . . . Used . | . . . . . Hacking Detections 11 | . . . 7 4 Full Trace Events 3 | . . . 1 2 Feedback Events . | . . . . . Feedback Blocked . | . . . . . Robot Schematics Acquired . | . . . . . Robots Built . | . . . . . Authchips . | . . . . . Time . | . . . . . Total Robot Build Rating . | . . . . . Part Schematics Acquired . | . . . . . Parts Built . | . . . . . Authchips . | . . . . . Time . | . . . . . Total Part Build Rating . | . . . . . Part Studies Acquired 4 | . . . 1 3 Parts Repaired . | . . . . . Time . | . . . . . Parts Recycled . | . . . . . Recycled Matter . | . . . . . Retrieved Matter . | . . . . . Retrieved Components . | . . . . . Parts Scanalyzed . | . . . . . Part Schematics Acquired . | . . . . . Parts Damaged . | . . . . . Bothacking | -11 -10 -10 -8 -7 ------------ Run | Yrd Mat Sub Mat Fac Used RIF Installer . | . . . . . Robots Hacked . | . . . . . Non-combat . | . . . . . Combat . | . . . . . Robot Hacks Applied . | . . . . . Relay Couplers Released . | . . . . . Fabnet Peak Effective % . | . . . . . Robots Rewired . | . . . . . Allies Hacked . | . . . . . Hacks Repelled . | . . . . . Allies | -11 -10 -10 -8 -7 -------- Run | Yrd Mat Sub Mat Fac Total Allies . | . . . . . Largest Group . | . . . . . Highest-Rated Group . | . . . . . Highest-Rated Ally . | . . . . . Total Orders . | . . . . . Ally Attacks . | . . . . . Total Damage . | . . . . . Kills . | . . . . . Allies Corrupted . | . . . . . Allies Melted . | . . . . . Intel | -11 -10 -10 -8 -7 ------- Run | Yrd Mat Sub Mat Fac Active Infowar (turns) 279 | . . . 270 9 Machine Analysis 279 | . . . 270 9 Robot Analysis Total . | . . . . . Derelict Logs Recovered 1 | . . 1 . . Drone Launches . | . . . . . Drone Recoveries . | . . . . . Exploration | -11 -10 -10 -8 -7 ------------- Run | Yrd Mat Sub Mat Fac Turns Passed 4584 | 72 559 675 2243 1035 Spaces Moved 1814 | 38 283 379 778 336 Core 16 | 2 . . 11 3 Treads 1132 | 36 283 379 398 36 Legs 410 | . . . 116 294 Wheels 256 | . . . 253 3 Hover . | . . . . . Flight . | . . . . . Fastest Speed 50 | 50 160 160 90 105 Average Speed 185 | 154 160 160 201 201 Slowest Speed 800 | 160 160 160 450 800 Overloaded Moves . | . . . . . Propulsion Burnouts . | . . . . . Robots Hopped . | . . . . . Potential Cave-ins . | . . . . . Cave-ins Triggered . | . . . . . Exploration Rate (%) 19 | 4 13 30 43 7 Regions Visited 4 Branch Regions 1 Pre-discovered Areas 1 | . . 1 . . Known Exits Taken . | . . . . . Unknown Exits Taken 4 | 1 1 1 1 . Scrap Searched . | . . . . . Spaces Dug . | . . . . . Terrain Destroyed 15 | . . . 15 . Melee . | . . . . . Projectile 1 | . . . 1 . AOE 14 | . . . 14 . Terrain Rammed . | . . . . . Walls Destroyed . | . . . . . Machines Disabled . | . . . . . Actions | -11 -10 -10 -8 -7 --------- Run | Yrd Mat Sub Mat Fac Total 2563 | 52 350 410 1213 538 Wait 248 | . 41 8 171 28 Move 1810 | 37 282 378 777 336 Hop . | . . . . . Pick Up 100 | 9 2 3 57 29 Fast Attach 1 | . . . . 1 Attach 70 | 6 1 . 37 26 Detach . | . . . . . Swap 28 | . 1 1 20 6 Drop 29 | . 1 1 16 11 Fire 272 | . 22 19 135 96 Melee 4 | . . . . 4 Ram . | . . . . . Kick . | . . . . . Crush 1 | . . . . 1 Escape Stasis . | . . . . . Rewire . | . . . . . Trap . | . . . . . Miscellaneous . | . . . . . Route ------- -11/Scrapyard -10/Materials -10/Subcaves -8/Materials -7/Factory (discovered 1 exit: [*Low]) History --------- Turn | Location | Event 10 | -11/Scrapyard | Discovered new exit (range 15) 73 | -11/Scrapyard | Entered Materials 302 | -10/Materials | Build established: Mutant 351 | -10/Materials | Discovered new exit (range 7) 632 | -10/Materials | Entered Subcaves 633 | -10/Subcaves | Approached by a straggling Scientist 641 | -10/Subcaves | Ambushed by Subdwellers from Twisted Machinery 766 | -10/Subcaves | Shifting Twisted Machinery released Battle Rifle 793 | -10/Subcaves | Learned location of Zion (-7) 1054 | -10/Subcaves | Shifting Twisted Machinery released Ripper 1074 | -10/Subcaves | Discovered new exit (range 5) 1181 | -10/Subcaves | Core integrity fell below 50% 1233 | -10/Subcaves | Disturbed a concealed Subdweller 1307 | -10/Subcaves | Entered Materials 1307 | -8/Materials | Evolved 4 slots: Power x1, Utility x3 1664 | -8/Materials | Garrison activated, responded to threat 1727 | -8/Materials | Lost 7 parts (2p2n3u) 2032 | -8/Materials | Build established: Scavenger-Mutant 2090 | -8/Materials | Core integrity fell below 50% 2142 | -8/Materials | Lost 9 parts (1p3n4u1w) 2976 | -8/Materials | Discovered new exit (range 14) 3133 | -8/Materials | Core integrity fell below 20% 3202 | -8/Materials | Lost 7 parts (2p2n3w) 3550 | -8/Materials | Entered Factory 3550 | -7/Factory | Evolved 2 slots: Propulsion x1, Utility x1 3800 | -7/Factory | Lost 4 parts (1p1n2u) 4327 | -7/Factory | Discovered new exit (range 5) 4531 | -7/Factory | Cargo convoy interrupted 4548 | -7/Factory | Core integrity fell below 50% 4574 | -7/Factory | Core integrity fell below 20% 4585 | -7/Factory | Destroyed by X-57 Shotgunner with Shotgun Last Messages --------------- 04567_ Plasma Cannon destroyed. 04568_ H-55 Commando destroyed. 04570_ R-06 Scavenger collects Assault Rifle. 04571_ K-01 Serf collects debris. 04572_ Penetrated by Slug. 04572_ Lgt. Nuclear Core+ destroyed. 04573_ Acquired Imp. Deuterium Engine. 04574_ R-06 Scavenger collects Carbon-fiber Leg. 04574_ K-01 Serf collects debris. 04575_ Adv. Targeting Computer destroyed. 04576_ Armor Integrity Analyzer destroyed. 04577_ Com. Wheel+ destroyed. 04578_ K-01 Serf collects debris. 04579_ Lgt. Nuclear Core+ destroyed. 04581_ X-57 Shotgunner Hpw. Shotgun severed. 04581_ K-01 Serf collects debris. 04582_ Cryofiber Web destroyed. 04583_ P-60 Hacker resets H-55 Commando, system corruption cleaned. 04584_ K-01 Serf collects debris. Map ----- +----------------------------------------------------+ | ?????????????????????????????????????????????????? | | ?????????????????????????????????????????????????? | | ?????????????????????????????????????????????????? | | ?????????????????????????????????????????????????? | | ?????????????????????????????????????????????????? | | ?????????????????????????????????????????????????? | | ?????????????????????????????????????????????????? | | ??????????????????????????????????????????????? | | ?????????????????????????????????????????????????? | | ???????????#####?????????????????????????????????? | | ############ #?????????????????????????????????? | | / + < #?####+#####??????????????????????? | | ### #?# #??????????????????????? | | ! #?## ##?# """ #??????????????????????? | | #??# #??# """ #??????????????????????? | | #+########### #??# """ #???????? ?????????????? | | """T""" #??# ###????? ??????????????? | | *%^ *% #??# / +???? ???????????????? | | [[^^"""%^ = #??# "" # ####/????????????????? | | [ """= ![ #??# S"" # ?????????????????? | | """ ! #??# "" # ??????????????????? | | #######+##### ???????????????????? | | [%| #?###r###??????????????????? | | #####+##### #?#x% %=#??????????????????? | | # # ###[kg[!#T?????????????????? | | #+####+# """" + ah@!!%=#??????????????????? | | ?????? # ""R"" ####+###g% ![#??????????????????? | | ???????# "" "" ## # *=*!#??????????????????? | | ???????# ## =## ##??????????????????? | | ???????# ## ## #???????????????????? | | ???????# ## ## #???????????????????? | | ???????# ## ! ## #???????????????????? | | ???????################### #???????????????????? | | ????????????????????????? ???????????????????? | | ????????????????????????? ??????????????????? | | ???????????????????????? ??????????????????? | | ???????????????????????? T #??""""???????????? | | ???????????????"""?"""?# #??""""???????????? | | ???????????????"""?"""?# ! #??""""???????????? | | ???????????????"""?"""?# != #??""""???????????? | | ???????????????????????## !%!##?????????????????" | | ????????????????????????# ?!!#??????????????????" | | ????????????????????????? ? ???????????????????? | | ?????????????????????????????????????????????????? | | ?????????????????????????????????????????????????? | | ?????????????????????????????????????????????????? | | ?????????????????????????????????????????????????? | | ?????????????????????????????????????????????????? | | ?????????????????????????????????????????????????? | | ?????????????????????????????????????????????????? | +----------------------------------------------------+ Best States ------------- Heat Dissipation 55 Energy Generation 26 Energy Capacity 350 Matter Stores 300 Matter Capacity 300 Sight Range 16 Terrain Scan Density 10 Base Temperature (-) 100 EM Shielding 2 Armor Coverage 450 Power Shielding 33 Evasion (%) 55 Targeting Accuracy 8 Core Analysis 6 Armor Integrity Analysis 30 Recoil Reduction 2 Offensive Hacking 10 Item Schematics ----------------- None Robot Schematics ------------------ None Fabricated ------------ Nothing Repaired ---------- Nothing Studied --------- Com. Wheel | -8/Materials | Hacked Lgt. Nuclear Core | -7/Factory | Hacked Aluminum Leg | -7/Factory | Hacked Mic. Nuclear Core | -7/Factory | Hacked Alien Tech Used ----------------- None Achievements -------------- I Laugh At Your Crits Challenges ------------ None Game ------ Seed ThermicShockboltMesh Manual? 0 Play Time 00:46:48 Cumulative 37.7 hours Start 2026.08.28 @ 22:50:12 End 2026.08.28 @ 23:34:12 Sessions 1 Manual Loads 0 Difficulty Rogue Special Mode None Game No. 55 Rogue 55 Adventurer 0 Explorer 0 Win Type - Total 0 Types 0/0/0/0/0/0/0/0/0/0 Lore% 19 Gallery% 23 Achievement% 19 Wizard Run 0 Options --------- Layout 1 ASCII 0 Keyboard 0 Movement Mouse Keybinds 0 Fullscreen 1 Font 16/SmallcapsGlow Map View 50x40 Zoom Use 0% Tactical HUD 1 Map Filters NONE Filters NONE Steam SD RUN: 2e70ae1b-c57a-4ef2-a78b-1de625f5fc2e